bitfinex/quotes_ETHUSD_20220305
["timestamp","ask_amount","ask_price","bid_price","bid_amount"]
[1646446996701,7.18529064,2615.5,2615.4,1.44631407]
[1646446996902,7.18529064,2615.5,2615.4,1.41473695]
[1646446997100,7.18529064,2615.5,2615.4,0.77350582]
[1646446997300,7.18529064,2615.5,2615.4,1.41465385]
[1646446997505,7.18529064,2615.5,2615.4,0.77350582]
[1646446998401,7.18529064,2615.5,2615.4,1.41462257]
[1646446998605,7.18529064,2615.5,2615.4,0.77350582]
[1646447000251,18.85529064,2615.5,2615.4,0.77262712]
[1646447000451,19.85529064,2615.5,2615.4,0.77262712]
[1646447000650,20.55733896,2615.5,2615.4,0.77262712]
[1646447000851,19.85529064,2615.5,2615.4,0.77262712]
[1646447001851,20.04629064,2615.5,2615.4,0.77262712]
[1646447002552,20.74918136,2615.5,2615.4,0.77262712]
[1646447002755,1.36589928,2614.9,2614.5,0.25]
[1646447003002,1.36589928,2614.9,2614.6,0.62593576]
[1646447003198,0.3829,2614.9,2614.7,0.62593576]
[1646447003399,12.67,2615.2,2614.8,0.62593576]
[1646447003599,1.31177448,2615.1,2614.5,0.62593576]
[1646447003800,0.3829,2614.9,2614.6,0.62575518]
[1646447004004,0.3829,2614.9,2614.5,0.62575518]
[1646447004221,0.3829,2614.9,2614.6,0.62575518]
[1646447004506,0.3829,2614.9,2614.7,0.62575518]
[1646447004707,0.3829,2615.1,2614.8,0.62575518]
[1646447004905,0.3829,2614.9,2614.4,0.00204009]
[1646447005105,0.3829,2614.9,2614.4,0.6300775]
[1646447005423,1.1666,2615.4,2614.6,0.95655]
[1646447005608,1.1666,2615.4,2615.2,1.00744285]
[1646447005806,0.3829,2615.8,2615.3,0.62546596]
[1646447006007,0.92826867,2615.6,2615.3,0.62546596]
[1646447008358,1.2088,2615.9,2615.3,4.12546596]
[1646447008554,0.92822883,2615.8,2615.4,1.58167596]
[1646447008753,0.92822883,2615.8,2615.5,0.62546596]
[1646447009363,7.47,2616.1,2615.5,0.62546596]
[1646447009559,0.92826927,2616.0,2615.5,4.12546596]
[1646447009755,0.92826927,2616.0,2615.6,0.62546596]
[1646447012399,0.92826927,2615.9,2615.6,0.62546596]
[1646447012600,0.92826927,2616.2,2615.6,0.62546596]
[1646447012799,0.92829673,2616.1,2615.6,0.62546596]
[1646447013008,0.92829673,2616.0,2615.6,0.62546596]
[1646447013199,0.92829673,2615.9,2615.6,0.62546596]
[1646447013402,0.92829673,2615.8,2615.6,0.62546596]
[1646447013600,1.2091,2616.3,2615.6,0.62546596]
[1646447013801,0.92841897,2616.2,2615.6,0.62546596]
[1646447017454,0.92841897,2616.2,2615.7,0.62546596]
[1646447017653,0.92841897,2616.2,2615.4,1.1351]
[1646447017903,0.92841897,2616.2,2615.5,0.62577949]
[1646447018099,0.3829,2616.1,2615.5,0.62577949]
[1646447018300,0.92841897,2616.0,2615.6,0.62577949]
[1646447018499,1.31131897,2616.0,2615.0,1.188]
[1646447018699,1.20416072,2615.7,2615.1,0.62601405]
[1646447018899,0.92841897,2615.6,2615.1,0.62601405]
[1646447023050,0.92841897,2615.8,2615.1,0.62601405]
[1646447023249,0.92841897,2615.5,2615.1,0.62601405]
[1646447023450,1.2456,2615.9,2615.5,0.75168415]
[1646447023649,12.6529,2616.0,2615.5,0.75168415]
[1646447023650,0.92890746,2615.8,2615.5,0.75168415]
[1646447023850,0.92890746,2615.7,2615.5,0.75168415]
[1646447024151,12.6529,2616.0,2615.6,0.62622088]
[1646447024355,0.92884019,2615.9,2615.6,0.62622088]
[1646447024960,0.92884019,2616.2,2615.6,0.62622088]
[1646447025156,0.92884019,2616.2,2615.6,4.12622088]
[1646447025401,0.92884019,2616.2,2615.7,0.62622088]
[1646447025601,0.92884019,2616.2,2615.7,1.85563441]
[1646447025807,0.92884019,2616.2,2615.8,0.62622088]
[1646447026403,1.11984019,2616.2,2615.8,0.62622088]
[1646447026701,0.92746226,2616.1,2615.8,0.62622088]
[1646447027303,2.2172,2616.3,2615.8,0.62622088]
[1646447027507,1.191,2616.4,2615.8,0.62622088]
[1646447027702,0.191,2616.4,2615.8,0.62622088]
[1646447029853,21.42155392,2616.5,2615.8,0.62622088]
[1646447030250,20.14,2616.5,2615.8,0.62622088]
[1646447031551,21.42124461,2616.5,2615.8,0.62622088]
[1646447031750,20.14,2616.5,2615.8,0.62622088]
[1646447031951,20.5229,2616.5,2615.8,0.62622088]
[1646447032556,21.80396894,2616.5,2615.8,0.62622088]
[1646447032753,20.5229,2616.5,2615.8,0.62622088]
[1646447033400,21.80398562,2616.5,2615.8,0.62622088]
[1646447033600,25.60398562,2616.5,2615.8,0.62622088]
[1646447033799,24.3229,2616.5,2615.8,0.62622088]
[1646447034207,24.3229,2616.5,2615.8,4.12622088]
[1646447034403,24.3229,2616.5,2615.7,1.22941353]
[1646447034805,24.3229,2616.5,2615.8,3.5]
[1646447035004,24.3229,2616.5,2615.7,1.22941353]
[1646447035804,12.6529,2616.5,2615.7,1.22941353]
[1646447036406,12.6529,2616.5,2615.8,3.5]
[1646447036660,11.27,2616.5,2615.8,3.5]
[1646447036850,3.8,2616.5,2615.8,3.5]
[1646447038053,3.8,2616.5,2616.0,1.91196]
[1646447038252,3.8,2616.5,2616.1,3.5]
[1646447038453,3.8,2616.5,2616.1,4.45593]
[1646447043507,2.12776269,2616.5,2616.1,4.45593]
[1646447044157,2.12776269,2616.5,2616.1,5.41183]
[1646447046755,2.12776269,2616.5,2616.2,0.59287074]
[1646447046955,2.12776269,2616.5,2616.3,3.5]
[1646447047154,2.12776269,2616.5,2616.4,0.59287074]
[1646447048011,2.12776269,2616.5,2616.4,4.09287074]
[1646447048221,2.12776269,2616.5,2616.4,6.00426074]
[1646447048416,2.12776269,2616.5,2616.4,6.38716074]
[1646447048610,0.01060631,2617.0,2616.5,5.83851]
[1646447048818,0.00096,2617.3,2616.6,4.47577074]
[1646447049020,0.00096,2617.5,2617.2,1.10658228]
[1646447049282,1.5677,2617.9,2617.2,1.10658228]
[1646447049283,0.00096,2617.6,2617.3,4.09287074]
[1646447049431,0.00096,2617.9,2617.4,0.97577074]
[1646447049616,0.00096,2618.1,2617.5,0.59287074]
[1646447049818,0.95582371,2618.3,2617.5,0.59287074]
[1646447049819,0.95582371,2618.2,2617.5,0.59287074]
[1646447050015,0.00096,2618.3,2617.5,2.88650074]
[1646447050213,0.9572798,2618.5,2617.6,0.59287074]
[1646447050413,0.01060524,2618.2,2617.6,0.59287074]
[1646447051214,0.00096,2618.3,2617.6,0.59287074]
[1646447051853,0.010605,2618.4,2617.6,0.59287074]
[1646447052052,0.010605,2618.4,2617.8,0.95536]
[1646447052453,0.00096,2618.6,2617.8,0.95536]
[1646447052653,0.01060491,2618.5,2617.8,0.95536]
[1646447052856,0.20140491,2618.5,2617.8,0.95536]
[1646447053465,0.01060491,2618.5,2617.8,0.95536]
[1646447053663,0.9537021,2618.4,2617.8,0.95536]
[1646447053855,0.00096,2618.5,2617.8,0.95536]
[1646447054054,0.95361136,2618.5,2617.8,0.95536]
[1646447054858,1.25361136,2618.5,2617.8,0.95536]
[1646447055058,0.95361136,2618.4,2617.8,0.95536]
[1646447055260,0.3,2618.5,2617.8,0.95536]
[1646447055903,0.4908,2618.5,2617.8,0.95536]
[1646447056105,0.4908,2618.5,2617.5,2.29363]
[1646447056309,0.00096,2618.4,2617.5,1.91073]
[1646447056506,0.00096,2618.4,2617.4,0.3829]
[1646447056704,0.95366268,2618.4,2617.2,2.35658228]
[1646447056911,3.8829,2618.3,2617.2,0.25]
[1646447057110,1.33656268,2618.2,2617.2,0.25]
[1646447057306,0.38386,2618.2,2617.1,1.1577]
[1646447057506,0.3829,2618.0,2617.1,1.1577]
[1646447057740,0.38386,2618.0,2617.1,1.1577]
[1646447057910,0.91543687,2617.4,2617.1,1.1577]
[1646447058108,0.91543687,2617.4,2616.8,1.5085]
[1646447058308,0.91543687,2617.4,2616.7,2.16136]
[1646447058507,0.91543687,2617.4,2616.8,0.58943276]
[1646447059355,0.01156561,2617.8,2616.9,0.95567]
[1646447059556,0.00096,2617.8,2616.9,0.95567]
[1646447059756,0.00816594,2617.6,2616.9,0.95567]
[1646447060758,0.00096,2617.8,2616.9,0.95567]
[1646447061159,0.01157088,2617.8,2616.9,0.95567]
[1646447061564,0.01157088,2617.8,2617.0,0.58937616]
[1646447061859,0.01157088,2617.8,2617.1,1.91109]
[1646447062060,0.00096,2617.8,2617.1,1.91109]
[1646447062659,0.00096,2617.8,2617.1,2.86662]
[1646447064521,0.00096,2617.8,2617.2,0.9554235]
[1646447064720,0.01156951,2618.0,2617.4,0.95542]
[1646447064927,0.3,2617.9,2617.4,0.95542]
[1646447065121,0.06946892,2617.9,2617.4,1.91084]
[1646447065724,0.06946892,2617.9,2617.5,0.98368476]
[1646447066322,0.06946892,2617.9,2617.4,1.91084]
[1646447066765,0.06946892,2617.9,2617.4,0.95542]
[1646447069961,0.06946892,2617.9,2617.1,1.91109]
[1646447070404,0.06946892,2617.9,2617.0,3.425]
[1646447071413,0.06946892,2617.9,2617.0,4.38067]
[1646447073008,0.06946892,2617.9,2617.1,0.58679335]
[1646447073211,0.06946892,2617.9,2617.1,3.45341335]
[1646447073411,0.06946892,2617.9,2617.1,2.86662]
[1646447074281,0.06946892,2617.9,2617.2,0.58711835]
[1646447075480,0.06946892,2617.9,2617.3,0.9555]
[1646447076080,1.19121344,2618.1,2617.3,0.9555]
[1646447076483,0.95923341,2618.0,2617.3,0.9555]
[1646447076683,0.01156959,2618.1,2617.3,0.9555]
[1646447076885,0.01156959,2618.1,2617.4,0.95542]
[1646447077086,0.01060959,2618.1,2617.5,1.91076]
[1646447077685,0.01060959,2618.1,2617.7,0.98269961]
[1646447077908,0.0115694,2618.3,2617.8,0.95537]
[1646447078111,0.0106094,2618.3,2617.8,0.95537]
[1646447078932,0.00096,2618.7,2617.8,0.95537]
[1646447079121,0.96135756,2618.7,2617.8,0.95537]
[1646447080817,0.96135756,2618.7,2617.9,0.58792229]
[1646447081656,0.1908,2618.6,2617.9,0.58792229]
[1646447081861,0.96039756,2618.5,2617.9,0.58792229]
[1646447082115,1.34329756,2618.5,2617.9,0.58792229]
[1646447082265,0.96039756,2618.4,2617.6,1.239]
[1646447082462,11.66,2618.3,2617.7,0.58806721]
[1646447082671,12.0429,2618.0,2617.1,0.25]
[1646447082879,12.0429,2618.0,2616.9,1.0]
[1646447082880,0.3829,2617.8,2616.9,1.0]
[1646447083069,0.9062299,2617.2,2616.9,1.0]
[1646447083464,0.9062299,2617.2,2616.5,0.70168537]
[1646447084062,0.9062299,2617.2,2616.4,1.10227453]
[1646447084262,0.9062299,2617.2,2616.5,0.58659637]
[1646447084463,0.9062299,2617.2,2616.6,0.58659637]
[1646447084663,0.9062299,2617.2,2616.7,0.58659637]
[1646447084862,0.9062299,2617.2,2616.8,0.58659637]
[1646447085072,0.9062299,2617.2,2616.9,0.58659637]
[1646447085268,0.9062299,2617.2,2617.0,0.58659637]
[1646447085504,0.9062299,2617.2,2616.3,3.08405986]
[1646447085705,0.21786588,2617.2,2616.4,0.58689323]
[1646447087206,0.21786588,2617.2,2616.4,1.2885786]
[1646447087405,0.38386,2617.5,2616.5,1.54267323]
[1646447087406,0.00096,2617.5,2616.5,1.54267323]
[1646447087607,0.01056148,2617.3,2616.6,0.58689323]
[1646447087812,0.01056148,2617.3,2616.7,0.58689323]
[1646447088012,0.01056148,2617.3,2616.8,0.58689323]
[1646447088211,0.01056148,2617.3,2616.9,0.58689323]
[1646447088413,0.00096,2617.7,2617.0,0.58689323]
[1646447088615,0.191,2617.8,2617.0,0.58689323]
[1646447088616,1.17074604,2617.8,2617.4,0.90207265]
[1646447088812,0.191,2617.8,2617.5,0.58689323]
[1646447089012,1.08499072,2618.4,2617.6,0.58689323]
[1646447089013,0.00096,2618.3,2617.6,0.58689323]
[1646447089262,0.00096,2618.0,2617.7,0.58689323]
[1646447089462,0.00096,2618.3,2617.8,0.58689323]
[1646447089660,0.97962224,2618.5,2617.9,0.58689323]
[1646447089861,0.00096,2618.3,2618.0,0.58689323]
[1646447090063,0.98682773,2618.4,2618.1,0.58689323]
[1646447090265,0.97866224,2618.3,2618.2,0.57448856]
[1646447090469,0.97866224,2618.3,2618.1,0.57448856]
[1646447090686,0.97866224,2618.3,2618.2,0.57448856]
[1646447091062,0.97866224,2618.3,2618.1,0.57448856]
[1646447091263,0.1908,2618.6,2618.1,0.57448856]
[1646447091463,0.9793264,2618.5,2618.1,0.57448856]
[1646447091662,0.9793264,2618.5,2618.2,0.57448856]
[1646447091862,0.9793264,2618.5,2617.9,0.95534]
[1646447092062,0.9793264,2618.5,2618.0,0.57445976]
[1646447093107,0.9793264,2618.4,2618.0,0.57445976]
[1646447093304,0.9793264,2618.3,2618.0,0.57445976]
[1646447093603,0.00096,2618.7,2618.0,0.57445976]
[1646447093804,0.97986716,2618.7,2618.0,0.57445976]
[1646447094412,0.3829,2618.5,2618.0,0.57445976]
[1646447094614,0.3829,2618.5,2617.8,0.2764]
[1646447094615,12.0429,2618.3,2617.8,0.2764]
[1646447094813,13.72565788,2618.2,2617.8,0.2764]
[1646447095014,1.36276716,2618.1,2617.8,0.2764]
[1646447095218,12.63986716,2618.0,2617.8,0.2764]
[1646447095414,0.3829,2617.8,2617.3,0.25]
[1646447095625,4.5,2617.5,2616.9,1.0]
[1646447095813,12.0429,2617.4,2616.9,1.0]
[1646447096013,12.0429,2617.4,2616.3,0.3821]
[1646447096212,0.3829,2617.2,2616.3,1.0]
[1646447096414,12.0429,2617.2,2616.1,0.70168537]
[1646447096669,0.90368921,2616.5,2616.0,0.70168537]
[1646447096867,0.90368921,2616.5,2615.9,1.70168537]
[1646447097058,0.90368921,2616.5,2615.9,1.0]
[1646447098064,1.06024655,2616.1,2615.9,1.0]
[1646447099267,0.3829,2616.4,2615.9,1.0]
[1646447099467,0.191,2616.8,2615.6,0.95168537]
[1646447099866,0.191,2616.8,2615.7,0.70168537]
[1646447100298,0.3829,2616.9,2616.0,0.95609]
[1646447100514,2.0,2617.3,2616.1,0.3829]
[1646447100711,4.20289072,2617.6,2616.2,0.95586]
[1646447100914,0.01053795,2617.0,2616.2,1.65754537]
[1646447101508,0.01053795,2617.0,2616.4,1.21854493]
[1646447101709,1.15226312,2617.3,2616.5,0.95575]
[1646447101911,0.01053849,2617.1,2616.5,0.95575]
[1646447102417,0.01053849,2617.1,2616.3,0.70168537]
[1646447102612,0.01053849,2617.1,2615.7,4.87048785]
[1646447102613,0.01053849,2617.1,2615.9,0.70168537]
[1646447102811,0.01053849,2617.1,2615.8,1.65781537]
[1646447103009,16.5429,2617.2,2615.8,0.95613]
[1646447103209,0.191,2617.1,2615.8,0.95613]
[1646447103459,1.42787256,2616.6,2615.8,1.65781537]
[1646447103611,1.42787256,2616.6,2615.8,0.95613]
[1646447103910,1.04497256,2616.6,2615.8,0.95613]
[1646447105171,1.04497256,2616.6,2615.6,0.25]
[1646447105172,15.5429,2616.5,2615.6,0.25]
[1646447105368,15.5429,2616.5,2615.5,0.75168415]
[1646447105565,13.0429,2616.5,2615.5,0.75168415]
[1646447105777,1.04497256,2616.6,2615.5,0.75168415]
[1646447105974,0.191,2616.9,2615.6,0.70168537]
[1646447106167,3.691,2616.9,2615.6,0.70168537]
[1646447106365,3.691,2616.9,2615.5,0.75168415]
[1646447106565,4.691,2616.9,2615.6,0.95621]
[1646447106766,1.191,2616.9,2615.6,4.45621]
[1646447106966,0.3829,2616.8,2615.6,4.45621]
[1646447107565,0.3829,2616.8,2616.1,1.06095705]
[1646447107769,0.191,2616.9,2616.1,1.06095705]
[1646447108006,4.14,2617.2,2616.1,1.06095705]
[1646447108007,0.0109879,2617.0,2616.1,1.06095705]
[1646447108810,0.3938879,2617.0,2616.1,1.06095705]
[1646447109017,0.3829,2617.0,2615.8,1.91205]
[1646447109219,12.2339,2617.0,2615.6,0.25]
[1646447109607,12.0429,2616.8,2615.6,0.25]
[1646447109810,13.0429,2616.8,2615.5,0.75168415]
[1646447110211,1.03687928,2616.1,2615.5,0.75168415]
[1646447110407,0.29265899,2616.1,2615.5,0.75168415]
[1646447110610,0.67555899,2616.1,2615.5,0.75168415]
[1646447111216,0.3829,2615.9,2615.5,0.75168415]
[1646447111416,12.0429,2615.9,2615.5,0.75168415]
[1646447111890,13.0429,2615.9,2615.5,0.75168415]
[1646447112667,12.0429,2615.7,2615.5,0.75168415]
[1646447112867,12.76690633,2615.6,2615.5,0.75168415]
[1646447113268,11.66,2615.4,2614.6,0.3819]
[1646447113473,1.0,2614.9,2614.6,0.00259281]
[1646447113672,0.95725,2614.5,2613.6,0.0142224]
[1646447113878,12.0429,2614.4,2613.6,0.0142224]
[1646447114070,15.5429,2614.4,2613.6,0.0142224]
[1646447114278,11.66,2614.1,2613.7,0.01000637]
[1646447114471,12.0429,2614.1,2613.7,0.01000637]
[1646447114775,13.0429,2614.1,2613.7,0.01000637]
[1646447114973,13.0429,2614.1,2613.6,0.0142224]
[1646447115172,12.0429,2614.1,2613.6,0.0142224]
[1646447115404,13.0429,2614.1,2613.8,0.00214366]
[1646447116203,13.0429,2614.1,2613.6,0.0142224]
[1646447116413,13.0429,2614.1,2613.8,0.00214361]
[1646447117410,4.8829,2613.9,2612.8,1.0]
[1646447117616,2.0,2613.0,2612.8,1.0]
[1646447117811,14.0429,2613.0,2612.6,0.0308828]
[1646447118009,2.0,2613.0,2612.6,0.0308828]
[1646447118408,0.3829,2613.1,2612.6,0.0308828]
[1646447118611,2.0,2613.0,2612.6,0.0308828]
[1646447118812,2.0,2613.0,2612.7,0.00214456]
[1646447119463,14.0429,2613.0,2612.7,0.00214456]
[1646447119859,3.3829,2613.0,2612.6,0.0308828]
[1646447120060,12.0429,2612.9,2612.6,0.0308828]
[1646447120291,14.18567455,2612.9,2612.6,0.0308828]
[1646447120660,1.0,2612.9,2612.6,0.0308828]
[1646447121162,2.0,2613.0,2612.6,0.0308828]
[1646447121762,2.87053518,2613.0,2612.6,0.0308828]
[1646447121961,2.0,2613.0,2612.6,0.0308828]
[1646447123104,0.1913,2613.3,2612.6,0.0308828]
[1646447123304,2.0,2613.5,2612.6,0.0308828]
[1646447123705,2.0,2613.5,2612.7,0.00249723]
[1646447124308,2.0,2613.5,2612.7,1.18494379]
[1646447124612,2.0,2613.5,2612.7,0.00256789]
[1646447124810,2.0,2613.5,2612.6,0.0308828]
[1646447124811,2.3829,2613.5,2612.6,0.0308828]
[1646447125010,11.8513,2613.4,2613.0,0.00249694]
[1646447125412,12.8513,2613.4,2613.0,0.00249694]
[1646447125612,0.8875877,2613.2,2613.0,0.00249694]
[1646447125811,0.8875877,2613.2,2612.6,0.0308828]
[1646447126011,12.5475877,2613.2,2613.1,0.00249685]
[1646447126214,13.5475877,2613.2,2613.1,0.00249685]
[1646447126413,17.0475877,2613.2,2613.1,0.00249685]
[1646447126855,17.2388877,2613.2,2613.1,0.00249685]
[1646447127059,12.0429,2613.0,2612.6,0.0308828]
[1646447127257,13.0429,2613.0,2612.6,0.04087187]
[1646447127454,1.3829,2613.0,2612.6,0.04087187]
[1646447127855,1.0,2613.2,2612.6,0.04087187]
[1646447128054,1.1913,2613.3,2612.6,0.04087187]
[1646447128255,0.1913,2613.3,2612.6,0.0308828]
[1646447128759,3.0,2613.5,2612.7,0.0022475]
[1646447129166,2.0,2613.5,2612.7,0.0022475]
[1646447129359,2.0,2613.5,2612.6,0.03345069]
[1646447130262,2.0,2613.5,2612.9,1.0418791]
[1646447130711,2.0,2613.5,2612.6,0.4137828]
[1646447130911,2.0,2613.5,2612.7,0.00256789]
[1646447131717,1.23409691,2613.4,2612.7,0.00256789]
[1646447132112,1.23409691,2613.4,2613.0,0.00246885]
[1646447132913,1.23409691,2613.4,2612.7,0.00256789]
[1646447133217,16.39409691,2613.4,2613.1,0.00246876]
[1646447133420,16.39409691,2613.4,2612.7,0.00858624]
[1646447133421,0.3829,2613.2,2612.7,0.00858624]
[1646447133620,0.3829,2613.0,2612.7,0.00858624]
[1646447133818,1.0,2613.3,2612.7,0.00858624]
[1646447134015,1.0,2613.2,2612.7,0.00858624]
[1646447134274,2.0,2613.5,2612.6,0.0308828]
[1646447134671,0.90326366,2613.2,2612.6,0.0308828]
[1646447134869,11.66,2613.1,2612.6,0.0308828]
[1646447135271,16.5429,2613.1,2612.6,0.0308828]
[1646447135876,12.5822558,2612.7,2612.6,0.0308828]
[1646447136289,13.5822558,2612.7,2612.6,0.0308828]
[1646447137474,1.0,2613.0,2612.6,0.0308828]
[1646447137673,2.0,2613.2,2612.6,0.0308828]
[1646447138522,2.0,2613.2,2612.6,0.98810788]
[1646447138726,4.75,2613.7,2612.7,3.5]
[1646447138727,2.4897,2613.7,2612.7,3.5]
[1646447138927,2.0,2613.7,2612.7,0.00256789]
[1646447139128,2.0,2613.7,2612.8,0.00256789]
[1646447139532,1.3673,2613.9,2613.2,1.17255926]
[1646447139729,13.66,2614.0,2613.2,0.00256789]
[1646447140025,13.66,2614.0,2612.9,3.5]
[1646447140226,13.5067838,2614.0,2613.0,0.00256789]
[1646447140834,14.5067838,2614.0,2613.0,0.00256789]
[1646447141026,1.03213008,2613.7,2613.0,0.00256789]
[1646447141226,12.53891388,2613.7,2613.0,0.00256789]
[1646447141430,12.53891388,2613.7,2612.8,0.00256789]
[1646447141668,12.53891388,2613.7,2612.6,0.03345069]
[1646447141669,11.5067838,2613.5,2612.6,0.03345069]
[1646447141857,12.5067838,2613.5,2612.6,0.03345069]
[1646447142063,0.94944925,2613.0,2612.6,0.03345069]
[1646447142258,0.94944925,2613.0,2612.6,0.0308828]
[1646447142461,12.5067838,2613.5,2612.6,0.0308828]
[1646447142860,12.6980838,2613.5,2612.6,0.0308828]
[1646447143261,1.1913,2613.5,2612.6,0.0308828]
[1646447143662,1.0,2613.6,2612.8,1.0622794]
[1646447143860,4.9194,2613.9,2612.8,1.06484729]
[1646447144067,3.7264,2613.9,2612.8,1.06484729]
[1646447144265,2.7264,2613.9,2612.8,1.06484729]
[1646447144501,2.6829,2614.0,2612.8,1.06484729]
[1646447144676,2.3,2614.0,2612.9,3.5]
[1646447144864,2.3,2614.0,2613.0,0.00256789]
[1646447145065,2.3,2614.0,2613.3,1.0949734]
[1646447145266,2.0,2614.0,2613.3,1.09754129]
[1646447145509,13.66,2614.0,2613.3,0.00256789]
[1646447145709,14.66,2614.0,2612.9,3.50256789]
[1646447145910,14.66,2614.0,2612.9,0.00256789]
[1646447146112,14.66,2614.0,2612.6,1.8594828]
[1646447146113,11.66,2613.6,2612.7,0.00256789]
[1646447146310,13.0429,2613.6,2612.7,0.00256789]
[1646447146512,1.12204672,2613.1,2612.7,0.00256789]
[1646447146708,1.12204672,2613.1,2612.6,0.0308828]
[1646447147314,12.0429,2613.5,2612.6,0.0308828]
[1646447147711,1.0,2613.5,2612.6,0.0308828]
[1646447148109,12.66,2613.7,2612.6,0.0308828]
[1646447148310,0.3,2613.0,2612.6,0.96679785]
[1646447148511,12.81177976,2613.6,2612.7,0.00256789]
[1646447148718,14.19467976,2613.6,2612.6,0.96679785]
[1646447148910,14.19467976,2613.6,2612.7,0.00256789]
[1646447149563,14.19467976,2613.6,2612.6,0.0308828]
[1646447150383,0.01265441,2613.2,2612.3,0.3235786]
[1646447150571,0.01265441,2613.2,2612.3,0.0735786]
[1646447150572,2.0,2612.8,2612.3,0.0735786]
[1646447150769,12.0429,2612.7,2612.3,0.0735786]
[1646447151165,12.0429,2612.7,2612.3,7.86e-05]
[1646447151367,11.66,2612.5,2612.3,7.86e-05]
[1646447151668,11.66,2612.5,2612.4,0.0024291]
[1646447151879,12.66,2612.5,2612.4,0.0024291]
[1646447152265,12.66,2612.5,2612.3,7.86e-05]
[1646447152471,13.0429,2612.5,2612.3,0.0025078]
[1646447153513,12.0429,2612.3,2612.1,0.00284793]
[1646447153717,12.53805886,2612.2,2612.1,0.00284793]
[1646447154217,13.53805886,2612.2,2612.1,0.00284793]
[1646447155216,12.66,2612.2,2612.1,0.00284793]
[1646447158366,13.85729587,2612.2,2612.1,0.00284793]
[1646447158965,13.85728785,2612.2,2612.1,0.00284793]
[1646447159166,13.85727768,2612.2,2612.1,0.00284793]
[1646447159371,13.85726901,2612.2,2612.1,0.00284793]
[1646447159572,12.66,2612.2,2612.1,0.00284793]
[1646447162218,12.66,2612.2,2612.1,0.36227811]
[1646447163025,12.66,2612.2,2612.1,0.00284793]
[1646447164265,13.85837409,2612.2,2612.1,0.00284793]
[1646447164862,12.66,2612.2,2612.1,0.00284793]
[1646447165063,11.66,2612.2,2612.1,0.00284793]
[1646447165266,11.66,2612.2,2612.1,0.36220259]
[1646447166673,12.66,2612.2,2612.1,0.36220259]
[1646447166866,12.66,2612.2,2612.1,0.00284793]
[1646447171442,11.66,2612.2,2612.1,0.00284793]
[1646447171679,11.66,2612.2,2612.1,0.35065327]
[1646447171870,12.66,2612.2,2612.1,0.35065327]
[1646447172072,2.0,2612.6,2612.1,3.85065327]
[1646447172273,0.86861111,2613.2,2612.3,1.32305756]
[1646447172586,3.20890138,2613.1,2612.4,4.23325454]
[1646447172776,0.70289072,2613.8,2612.5,0.34780534]
[1646447172777,0.1913,2613.8,2612.5,0.34780534]
[1646447173029,2.0,2613.5,2612.6,0.0025492]
[1646447173175,2.0,2613.5,2612.7,0.3829]
[1646447173386,0.94736512,2613.9,2612.9,0.96121798]
[1646447173577,1.20874796,2613.8,2613.0,0.34780534]
[1646447173775,1.20874796,2613.8,2613.0,3.84780534]
[1646447173977,1.20874796,2613.8,2613.1,0.73070534]
[1646447174176,1.20874796,2613.8,2613.2,0.34780534]
[1646447175281,1.20874796,2613.8,2613.2,3.84780534]
[1646447175512,1.20874796,2613.8,2613.3,0.34780534]
[1646447175713,1.20874796,2613.8,2613.0,3.89078373]
[1646447175917,1.20874796,2613.8,2613.1,0.34706748]
[1646447176314,1.20731223,2613.8,2613.1,0.34706748]
[1646447177520,3.0,2613.9,2613.1,0.34706748]
[1646447177717,2.0,2613.9,2613.1,0.34706748]
[1646447177918,3.0,2613.9,2613.1,0.34706748]
[1646447178822,2.0,2613.9,2613.1,0.34706748]
[1646447179022,2.7963,2614.2,2613.1,0.34706748]
[1646447179285,1.00049559,2614.2,2613.4,0.3829]
[1646447179587,1.00049559,2614.2,2613.5,3.5]
[1646447180422,0.95049559,2614.2,2613.5,3.5]
[1646447182914,12.66,2614.3,2613.5,3.8829]
[1646447182915,1.0,2614.3,2613.5,3.8829]
[1646447183312,10.60819997,2614.5,2613.5,3.8829]
[1646447184220,9.47,2614.5,2613.9,1.18082093]
[1646447184419,9.47,2614.5,2614.0,3.5]
[1646447184420,7.47,2614.5,2614.0,3.5]
[1646447184817,7.47,2614.5,2614.0,3.8829]
[1646447186770,7.47,2614.5,2613.9,0.3829]
[1646447186965,7.47,2614.5,2613.7,0.3829]
[1646447187765,7.47,2614.5,2613.4,0.3829]
[1646447187966,1.18766691,2614.2,2613.6,0.3829]
[1646447188165,1.18766691,2614.2,2613.4,0.3829]
[1646447188365,1.18766691,2614.2,2613.3,0.25]
[1646447188764,1.18766691,2614.2,2613.3,3.75]
[1646447189168,1.18766691,2614.2,2613.4,1.21427235]
[1646447190170,8.47,2614.5,2613.5,3.5]
[1646447191314,0.89100828,2614.4,2613.5,3.5]
[1646447194671,12.55100828,2614.4,2613.5,3.5]
[1646447194872,0.89100828,2614.4,2613.5,3.5]
[1646447195074,1.0,2614.4,2613.6,0.95689]
[1646447195272,8.47,2614.5,2613.7,3.5]
[1646447195471,8.47,2614.5,2613.6,0.95689]
[1646447196173,9.52729174,2614.5,2613.6,0.95689]
[1646447196372,8.47,2614.5,2613.7,3.5]
[1646447196602,8.47,2614.5,2613.6,0.95689]
[1646447197374,1.20295976,2614.4,2613.5,3.5]
[1646447198216,8.47,2614.5,2613.5,3.5]
[1646447198614,1.20303213,2614.4,2613.5,3.5]
[1646447198821,8.47,2614.5,2613.6,0.95688]
[1646447199420,8.47,2614.5,2613.7,3.5]
[1646447199624,1.0,2614.5,2613.7,3.5]
[1646447199822,1.17397105,2614.5,2613.7,3.5]
[1646447200426,7.47,2614.6,2613.7,3.5]
[1646447200622,0.52109997,2614.9,2613.7,3.5]
[1646447200822,1.2030888,2614.8,2613.7,3.5]
[1646447201771,1.2030888,2614.8,2614.0,0.95439927]
[1646447201963,1.2030888,2614.8,2613.6,0.95688]
[1646447202172,0.01200413,2614.6,2613.3,1.25]
[1646447202367,1.48613524,2613.5,2613.3,1.0]
[1646447204376,1.48480828,2613.5,2613.3,1.0]
[1646447213316,1.20914371,2613.4,2613.3,1.0]
[1646447213716,0.3829,2613.3,2612.7,1.1699]